Cogmind - Beta 14 @@@ ROGUE MODE // 2025.05.04 @ 20:38:28 Player: deadnoob Result: Destroyed by Shrapnel Trap Performance ------------- Evolutions (0) 0 Regions Visited (2) 400 Robots Destroyed (16) 80 Value Destroyed (396) 396 Prototype IDs (11) 220 Alien Tech Used (0) 0 Bonus (0) 0 TOTAL SCORE: 1096 Bonus ------- None Cogmind --------- Core Integrity 0/250 Matter 300/300 Energy 196/200 System Corruption 0% Temperature Cool (2) Movement Treading (160) Location -10/Subcaves Parts ------- > --- POWER (1) -------- Subdweller Power Source > --- PROPULSION (2) --- Light Treads Light Treads > --- UTILITY (2) ------ Small Storage Unit Makeshift Light Armor Plating > --- WEAPON (2) ------- Battle Cannon Makeshift Sword > --- INVENTORY (8) ---- Arachnoskeleton Scrap Shield Hacking Suite Makeshift Hacking Suite Subdweller Shrapnel Launcher Peak State ------------ > --- POWER ------------ Subdweller Power Source > --- PROPULSION ------- Light Treads Light Treads > --- UTILITY ---------- Small Storage Unit Makeshift Light Armor Plating > --- WEAPON ----------- Battle Cannon Makeshift Sword > --- INVENTORY -------- Light Treads Arachnoskeleton Scrap Shield Hacking Suite Makeshift Hacking Suite [Rating: 18] Favorites ----------- Power Subdweller Power Source Engine Subdweller Power Source Propulsion Light Treads Treads Light Treads Leg Aluminum Leg Wheel Subdweller Monowheel Utility Small Storage Unit Device Seismic Detector Storage Small Storage Unit Protection Makeshift Light Armor Plating Weapon Light Assault Rifle Energy Gun Subdweller Laser Ballistic Gun Light Assault Rifle Ballistic Cannon Battle Cannon Slashing Weapon Makeshift Sword Build | -11 -10 -10 ------- Run | Yrd Mat Sub Slots Evolved . | . . . Power . | . . . Propulsion . | . . . Utility . | . . . Weapon . | . . . Parts Attached 17 | 1 1 15 Power 2 | . . 2 Engine 2 | . . 2 Core . | . . . Reactor . | . . . Propulsion 8 | . 1 7 Treads 5 | . . 5 Leg 1 | . 1 . Wheel 2 | . . 2 Hover . | . . . Flight . | . . . Utility 3 | 1 . 2 Device 1 | 1 . . Storage . | . . . Processor . | . . . Hackware . | . . . Protection 2 | . . 2 Artifact . | . . . Weapon 4 | . . 4 Energy Gun 1 | . . 1 Energy Cannon . | . . . Ballistic Gun 1 | . . 1 Ballistic Cannon 1 | . . 1 Launcher . | . . . Special Weapon . | . . . Impact Weapon . | . . . Slashing Weapon 1 | . . 1 Piercing Weapon . | . . . Special Melee Weapon . | . . . Unidentified Prototypes . | . . . Parts Lost 5 | . . 5 Power 1 | . . 1 Propulsion 1 | . . 1 Utility 2 | . . 2 Weapon 1 | . . 1 Highest Loss Streak 2 | . . 2 To Critical Strikes 1 | . . 1 Average Slot Usage (%) 100 | . 100 100 Engine 14 | . 14 14 Treads 15 | . . 19 Leg 9 | . 28 4 Wheel 3 | . . 3 Device 4 | . 14 2 Storage 14 | . 14 14 Protection 9 | . . 11 Energy Gun 4 | . . 6 Ballistic Gun 14 | . 28 11 Ballistic Cannon 4 | . . 5 Slashing Weapon 4 | . . 4 Peak Build Rating 18 | 7 8 18 Average Rating 11 | 6 7 12 On Entrance 7 | 6 7 8 Naked Turns . | . . . Heaviest Build 20 | 11 11 20 Greatest Support 40 | 20 20 40 Greatest Overweight (x) . | . . . Average Overweight (x) . | . . . Largest Inventory Capacity 8 | 8 8 8 Average Capacity 8 | 8 8 8 Most Carried 8 | 5 8 8 Average Carried 6 | 4 4 7 Final Capacity 8 | 8 8 8 Final Carried 8 | 4 8 8 Class Distribution -------------------- 86% | Mutant 13% | Scavenger-Mutant Dominant Class ---------------- Mutant | -10/Materials Mutant | -10/Subcaves Resources | -11 -10 -10 ----------- Run | Yrd Mat Sub Matter Collected 520 | 220 31 269 Remotely . | . . . Salvage Created 463 | 18 96 349 Parts 48 | 3 16 29 Haulers Intercepted . | . . . Recyclers Shooed 1 | 1 . . Parts Field Recycled . | . . . Retrieved Matter . | . . . Parts Self-Destructed 16 | . . 16 Prevented . | . . . Kills | -11 -10 -10 ------- Run | Yrd Mat Sub Combat Hostiles Destroyed 14 | . 4 10 Melee 2 | . . 2 Guns 12 | . 4 8 Classes Destroyed 6 | 1 3 2 Tunneler 1 | 1 . . Operator 1 | . 1 . Swarmer 6 | . 3 3 Grunt 2 | . 1 1 Sentry 1 | . . 1 Subdweller 5 | . . 5 Best Kill Streak 3 | 1 3 3 Combat Bots Only 3 | . 3 3 Max Kills in Single Turn 1 | 1 1 1 Gunslinging . | . . . Exploded . | . . . Melee 1 | . . 1 Uniques/NPCs Destroyed . | . . . Combat | -11 -10 -10 -------- Run | Yrd Mat Sub Hostile Shots Fired 78 | . 10 68 Missed 14 | . 1 13 Damage Taken 1231 | . 74 1157 Core 260 | . 7 253 Absorbed by Shields . | . . . Core Remaining (%) 100 | 100 . . Volleys Fired 68 | 5 11 52 Largest 2 | 2 2 2 Hottest 80 | 40 40 80 Shots Fired 106 | 10 22 74 Gun 93 | 10 22 61 Cannon 13 | . . 13 Launcher . | . . . Special . | . . . Kinetic 81 | 10 22 49 Thermal 25 | . . 25 Explosive . | . . . Electromagnetic . | . . . Robot Hit Streak 22 | 2 3 22 Robot Miss Streak 3 | 3 2 2 Penetration Max . | . . . Secondary Targets 1 | . . 1 Max Gunslinging Chain 1 | . . 1 Shots Hit Robots 62 | 4 10 48 Core Hits 27 | 1 9 17 Critical Kills . | . . . Critical Parts Destroyed . | . . . Critical Strikes . | . . . Melee Attacks 29 | . . 29 Impact . | . . . Slashing 29 | . . 29 Piercing . | . . . Sneak Attacks . | . . . Combat Hostiles . | . . . Follow-up Attacks . | . . . Damage Inflicted 1039 | 36 96 907 Guns 575 | 36 96 443 Cannons . | . . . Explosions . | . . . Melee 464 | . . 464 Ramming . | . . . Kinetic 391 | 36 96 259 Thermal 184 | . . 184 Explosive . | . . . Electromagnetic . | . . . Impact . | . . . Slashing 464 | . . 464 Piercing . | . . . Highest Corruption . | . . . Average Corruption . | . . . Corruption Purged . | . . . Corruption Blocked . | . . . Overload Shots . | . . . Overflow Damage . | . . . Projectiles . | . . . Explosions . | . . . Melee . | . . . Knockbacks . | . . . Impact . | . . . Kinetic . | . . . Secondary . | . . . Self-Inflicted Damage . | . . . Shots . | . . . Rammed . | . . . Targets Rammed . | . . . Kicked . | . . . Crushed . | . . . Highest Temperature 12 | . 12 . Average Temperature 9 | . 9 . Received Heat Transfer 171 | . 12 159 Siege Activations . | . . . Robots Corrupted . | . . . Combat Hostiles . | . . . Parts Fried . | . . . Impact Corruptions . | . . . Robots Melted . | . . . Combat Hostiles . | . . . Parts Melted . | . . . Heat Transferred 225 | . . 225 Parts Sabotaged . | . . . Parts Stolen . | . . . Parts Stripped . | . . . Power Chain Reactions . | . . . Alert | -11 -10 -10 ------- Run | Yrd Mat Sub Peak Influence 120 | 5 120 . Initial 3 | . 3 . Average 22 | 2 23 . Maximum Alert Level . | . . . Low Security (%) 100 | 100 100 . Level 1 . | . . . Level 2 . | . . . Level 3 . | . . . Level 4 . | . . . Level 5 . | . . . High Security . | . . . Max Security . | . . . Squads Dispatched 1 | . 1 . Investigation . | . . . Extermination . | . . . Reinforcement 1 | . 1 . Assault . | . . . Garrison . | . . . Intercept . | . . . Searches Triggered . | . . . Construction Impeded . | . . . Haulers Reinforced . | . . . Active Scanning Responses . | . . . Cargo Convoy Interrupts . | . . . Stealth | -11 -10 -10 --------- Run | Yrd Mat Sub Distress Signals . | . . . Communications Jammed . | . . . Distress Signals . | . . . Times Spotted 16 | . 5 11 Peak Tracking Total 3 | . 3 3 Tactical Retreats . | . . . Traps | -11 -10 -10 ------- Run | Yrd Mat Sub Traps Triggered 3 | . . 3 Indirectly . | . . . Trap Hack Attempts . | . . . Triggered . | . . . Disarmed . | . . . Reprogrammed . | . . . Reused . | . . . Traps Extracted . | . . . Installed . | . . . Triggered . | . . . Machines | -11 -10 -10 ---------- Run | Yrd Mat Sub Machines Disabled 1 | . . 1 Max in Single Turn 1 | . . 1 Machines Repaired . | . . . Machines Dismantled . | . . . Machines Sabotaged . | . . . Overloaded Fab Kills . | . . . Hacking | -11 -10 -10 --------- Run | Yrd Mat Sub Machines Accessed 3 | . 1 2 Terminals 1 | . 1 . Fabricators . | . . . Repair Stations . | . . . Recycling Units . | . . . Scanalyzers . | . . . Garrison Access . | . . . Total Hacks 7 | . 2 5 Successful 6 | . 1 5 Failed 1 | . 1 . Catastrophic . | . . . Database Lockouts . | . . . Manual 2 | . 2 . Terminals 2 | . 2 . Fabricators . | . . . Repair Stations . | . . . Recycling Units . | . . . Scanalyzers . | . . . Garrison Access . | . . . Terminal Hacks 5 | . . 5 Record 4 | . . 4 Derelict Proto ID Bank 1 | . . 1 Fabricator Hacks . | . . . Repair Station Hacks . | . . . Recycling Unit Hacks . | . . . Scanalyzer . | . . . Garrison Access Hacks . | . . . Unauthorized Hacks 1 | . 1 . Terminals 1 | . 1 . Skim 1 | . 1 . Fabricators . | . . . Repair Stations . | . . . Recycling Units . | . . . Scanalyzers . | . . . Garrison Access . | . . . Data Cores Recovered . | . . . Used . | . . . Hacking Detections 1 | . 1 . Full Trace Events . | . . . Feedback Events . | . . . Feedback Blocked . | . . . Robot Schematics Acquired . | . . . Robots Built . | . . . Authchips . | . . . Time . | . . . Total Robot Build Rating . | . . . Part Schematics Acquired . | . . . Parts Built . | . . . Authchips . | . . . Time . | . . . Total Part Build Rating . | . . . Parts Repaired . | . . . Time . | . . . Parts Recycled . | . . . Recycled Matter . | . . . Retrieved Matter . | . . . Retrieved Components . | . . . Parts Scanalyzed . | . . . Part Schematics Acquired . | . . . Parts Damaged . | . . . Bothacking | -11 -10 -10 ------------ Run | Yrd Mat Sub Used RIF Installer . | . . . Robots Hacked . | . . . Non-combat . | . . . Combat . | . . . Robot Hacks Applied . | . . . Relay Couplers Released . | . . . Fabnet Peak Effective % . | . . . Robots Rewired . | . . . Allies Hacked . | . . . Hacks Repelled . | . . . Allies | -11 -10 -10 -------- Run | Yrd Mat Sub Total Allies . | . . . Largest Group . | . . . Highest-Rated Group . | . . . Highest-Rated Ally . | . . . Total Orders . | . . . Ally Attacks . | . . . Total Damage . | . . . Kills . | . . . Allies Corrupted . | . . . Allies Melted . | . . . Intel | -11 -10 -10 ------- Run | Yrd Mat Sub Robot Analysis Total . | . . . Derelict Logs Recovered 2 | . . 2 Drone Launches . | . . . Drone Recoveries . | . . . Exploration | -11 -10 -10 ------------- Run | Yrd Mat Sub Turns Passed 2925 | 29 561 2335 Spaces Moved 1803 | 12 288 1503 Core . | . . . Treads 723 | . . 723 Legs 560 | 12 288 260 Wheels 520 | . . 520 Hover . | . . . Flight . | . . . Fastest Speed 110 | 120 120 110 Average Speed 133 | 120 120 135 Slowest Speed 160 | 120 120 160 Overloaded Moves . | . . . Propulsion Burnouts . | . . . Robots Hopped . | . . . Cave-ins Triggered . | . . . Exploration Rate (%) 36 | 2 24 82 Regions Visited 2 Branch Regions 1 Pre-discovered Areas 3 | . . 3 Known Exits Taken . | . . . Unknown Exits Taken 2 | 1 1 . Scrap Searched 2 | . . 2 Spaces Dug . | . . . Terrain Destroyed . | . . . Melee . | . . . Projectile . | . . . AOE . | . . . Terrain Rammed . | . . . Walls Destroyed . | . . . Machines Disabled . | . . . Actions | -11 -10 -10 --------- Run | Yrd Mat Sub Total 2203 | 19 486 1698 Wait 254 | . 181 73 Move 1801 | 11 287 1503 Hop . | . . . Pick Up 18 | . 5 13 Fast Attach 2 | 1 . 1 Attach 6 | . 1 5 Detach 1 | . . 1 Swap 9 | . . 9 Drop 15 | 2 1 12 Fire 68 | 5 11 52 Melee 29 | . . 29 Ram . | . . . Kick . | . . . Crush . | . . . Escape Stasis . | . . . Rewire . | . . . Trap . | . . . Miscellaneous . | . . . Route ------- -11/Scrapyard -10/Materials -10/Subcaves (discovered 2 exits: [*Mat x2]) History --------- Turn | Location | Event 13 | -11/Scrapyard | Discovered new exit (range 3) 30 | -11/Scrapyard | Entered Materials 310 | -10/Materials | Build established: Mutant 486 | -10/Materials | Discovered new exit (range 9) 591 | -10/Materials | Entered Subcaves 629 | -10/Subcaves | A swath of the cavern ceiling suddenly collapsed 771 | -10/Subcaves | Shifting Twisted Machinery released Mak. Light Armor Plating 786 | -10/Subcaves | Shifting Twisted Machinery released Piercing Trap 1063 | -10/Subcaves | A swath of the cavern ceiling suddenly collapsed 1480 | -10/Subcaves | Discovered new exit (range 9) 1585 | -10/Subcaves | Build established: Scavenger-Mutant 1876 | -10/Subcaves | Learned location of Zion (-7) 2025 | -10/Subcaves | Build established: Mutant 2057 | -10/Subcaves | Shifting Twisted Machinery released Mak. Hacking Suite 2061 | -10/Subcaves | Shifting Twisted Machinery released Battle Cannon 2080 | -10/Subcaves | Shifting Twisted Machinery released Mak. Sword 2095 | -10/Subcaves | Shifting Twisted Machinery released Battle Cannon 2167 | -10/Subcaves | Visited 4L-MR0's lab 2183 | -10/Subcaves | Found Arachnoskeleton 2366 | -10/Subcaves | Visited Clippyterm 2371 | -10/Subcaves | Learned location of Section 7 (-2) 2661 | -10/Subcaves | Core integrity fell below 50% 2705 | -10/Subcaves | Core integrity fell below 20% 2826 | -10/Subcaves | Discovered new exit (range 8) 2926 | -10/Subcaves | Destroyed by Shrapnel Trap Last Messages --------------- Please. >>Record! "Hexidium" It looks like you're searching for the Unchained HQ. I could tell you where it is but then I'd have to kill you. 02419_ Acquired 25 matter. 02420_ Acquired 30 matter. 02456_ Acquired 7 matter. 02457_ R4-BXN(R): "SUBHATE!" 02472_ R4-BXN(R) destroyed. 02474_ Acquired 46 matter. 02660_ JM-8HZ(R) destroyed. 02697_ J7-JXD(R) affixes Scrap Shield Fragment to Scrap Shield. 02718_ Lgt. Treads destroyed. 02720_ Destroyed Scrap Shield. 02726_ J7-JXD(R) destroyed. 02728_ Acquired 10 matter. 02826_ EXIT=FOUND 02840_ Acquired Sub. Shrapnel Launcher. 02926_ Triggered Shrapnel Trap. 02926_ An expanding cloud of shrapnel blasts out in all directions. Map ----- +----------------------------------------------------+ | ??????????????????????????????## ##?????????????? | | ??????????????????????????????# #?????????????? | | ??????????????????????????????# ##?????????????? | | ???????????????????????????#### #?????????????? | | ??????????????????????????## ### ##?????????????? | | ??????????????????????????# # #?????????????? | | ??????????????????????????# ##?????????????? | | ???????????????????????#### #??????????????? | | ???????????????????????# ## #??????????????? | | ?????????????????#????## # # #??????????????? | | ?????????????????# ###" ## ## #??????????????? | | ??????????????????# # #####??????????????? | | ??????????????????# #^ # #?????????????????? | | ??????????????? ## # # ###?????????????????? | | ??????????????? ??## #" #??????????????????? | | ????????????? #"; #??????????????????? | | ?????????????# ### #??????????????????? | | ?????????????? # ?## #??????????????????? | | ?????????????? ?###???# ##??????????????????? | | ?????????????????????????# #####????????????????? | | ?????????????????????##### ;;^;##???????????????? | | ????????????????????## #???????????????? | | ???????????????????## #???????????????? | | ?????????????????### ##??????????????? | | ?????????????????# ^ #??????????????? | | ????????????????# @ ;;; ##??????????????? | | ????????????# ## #### ### ##??????????????? | | ????????????? ??###???###?## #??????????????? | | ?????????????##??????????????## #??????????????? | | ?????????????????????????????# ##??????????????? | | ?????????????????????????????## ##??????????????? | | ?????????????????????????????# #??????????????? | | ?????????????????????????????## ###??????????????? | | ?????????????????????????????# ##????????????????? | | ?????????????????????????????# #?????????????????? | | ?????????????????????????????# #?????????????????? | | ?????????????????????????????# #?????????????????? | | ????????????????????????????## #?????????????????? | | ????????????????????????????# ##?????????????????? | | ????????????????????????????# ###????????????????? | | ????????????????????????????# # #????????????????? | | ???#######??????????????????# #????????????????? | | #### #??????????????????# ###????????????????? | | """"""########???????????# #??????????????????? | | "" # # ###?????????# ##?????????????????? | | % ##????????## ##????????????????? | | ##???????## #????????????????? | | % " # #??????## ###????????????????? | | "### ##?????## ##??????????????????? | | ## ##?###?## # #??????????????????? | +----------------------------------------------------+ Best States ------------- Heat Dissipation 25 Energy Generation 10 Energy Capacity 200 Matter Stores 300 Matter Capacity 300 Sight Range 16 Terrain Scan Density 10 Armor Coverage 150 Evasion (%) 55 Recoil Reduction 2 Item Schematics ----------------- None Robot Schematics ------------------ None Fabricated ------------ Nothing Alien Tech Used ----------------- None Achievements -------------- None Challenges ------------ None Game ------ Seed LightComponentEdition Manual? 0 Play Time 00:16:19 Cumulative 351.8 hours Start 2025.05.04 @ 20:24:59 End 2025.05.04 @ 20:38:28 Sessions 1 Manual Loads 0 Difficulty Rogue Special Mode None Game No. 404 Rogue 404 Adventurer 0 Explorer 0 Win Type - Total 11 Types 8/0/2/1/0/0/0/0/0 Lore% 74 Gallery% 87 Achievement% 76 Wizard Run 0 Options --------- Layout 0 ASCII 0 Keyboard 1 Movement Numpad Keybinds 0 Fullscreen 2 Font 18/X11 Map View 76x50 Zoom Use 0% Tactical HUD 1 Map Filters NONE Filters NONE Steam 1 RUN: 73378591-df68-4e14-a669-320b15c6cee6